[Event "Kwalificatie NJK B Groningen"]
[Site "Hoogkerk, Netherlands"]
[Date "2023.02.18"]
[Round "3.3"]
[White "Kleibeuker, Mika"]
[Black "Snijders, Take"]
[Result "0-1"]
[TimeControl "55 min. + 10 sec./zet"]
[WhiteElo "1698"]
[BlackElo "1848"]

1. e4 {[%clk 00:55:17]} {[%emt 00:00:03]} c6 {[%clk 00:55:17]} {[%emt
00:00:04]} 2. d4 {[%clk 00:54:59]} {[%emt 00:00:28]} d5 {[%clk 00:55:23]}
{[%emt 00:00:03]} 3. Nc3 {[%clk 00:55:08]} {[%emt 00:00:02]} dxe4 {[%clk
00:55:28]} {[%emt 00:00:05]} 4. Nxe4 {[%clk 00:55:16]} {[%emt 00:00:02]} Nf6
{[%clk 00:55:34]} {[%emt 00:00:04]} 5. Nxf6+ {[%clk 00:55:23]} {[%emt
00:00:03]} exf6 {[%clk 00:55:41]} {[%emt 00:00:03]} 6. Nf3 {[%clk 00:55:28]}
{[%emt 00:00:05]} Bd6 {[%clk 00:55:44]} {[%emt 00:00:07]} 7. Be3 {[%clk
00:55:25]} {[%emt 00:00:12]} O-O {[%clk 00:55:30]} {[%emt 00:00:25]} 8. Bd3
{[%clk 00:55:22]} {[%emt 00:00:13]} Re8 {[%clk 00:54:56]} {[%emt 00:00:43]} 9.
O-O {[%clk 00:55:27]} {[%emt 00:00:06]} Bg4 {[%clk 00:54:13]} {[%emt 00:00:53]}
10. c3 {[%clk 00:54:17]} {[%emt 00:01:21]} Nd7 {[%clk 00:53:22]} {[%emt
00:00:59]} 11. h3 {[%clk 00:52:00]} {[%emt 00:02:27]} Bh5 {[%clk 00:53:15]}
{[%emt 00:00:18]} 12. Re1 {[%clk 00:50:36]} {[%emt 00:01:34]} Nf8 {[%clk
00:52:59]} {[%emt 00:00:26]} 13. Be2 {[%clk 00:49:42]} {[%emt 00:01:04]} Ne6
{[%clk 00:50:51]} {[%emt 00:02:17]} 14. Qd2 {[%clk 00:48:38]} {[%emt 00:01:14]}
f5 {[%clk 00:47:38]} {[%emt 00:03:24]} 15. Ne5 {[%clk 00:44:39]} {[%emt
00:04:08]} Bxe2 {[%clk 00:46:48]} {[%emt 00:01:00]} 16. Rxe2 {[%clk 00:43:59]}
{[%emt 00:00:51]} f4 {[%clk 00:44:40]} {[%emt 00:02:18]} 17. Bxf4 {[%clk
00:41:23]} {[%emt 00:02:44]} Nxf4 {[%clk 00:44:44]} {[%emt 00:00:07]} 18. Qxf4
{[%clk 00:41:22]} {[%emt 00:00:12]} f6 {[%clk 00:44:38]} {[%emt 00:00:15]} 19.
Rae1 {[%clk 00:38:11]} {[%emt 00:03:21]} fxe5 {[%clk 00:44:02]} {[%emt
00:00:46]} 20. dxe5 {[%clk 00:38:03]} {[%emt 00:00:19]} Bc7 {[%clk 00:42:33]}
{[%emt 00:01:39]} 21. Qb4 {[%clk 00:36:38]} {[%emt 00:01:34]} Bb6 {[%clk
00:41:41]} {[%emt 00:01:02]} 22. e6 {[%clk 00:34:45]} {[%emt 00:02:03]} Qe7
{[%clk 00:40:09]} {[%emt 00:01:42]} 23. Qb3 {[%clk 00:33:48]} {[%emt 00:01:07]}
Rf8 {[%clk 00:39:19]} {[%emt 00:01:00]} 24. Kh1 {[%clk 00:23:14]} {[%emt
00:10:44]} Rf6 {[%clk 00:29:54]} {[%emt 00:09:36]} 25. Rd2 {[%clk 00:19:53]}
{[%emt 00:03:30]} Kh8 {[%clk 00:16:42]} {[%emt 00:13:23]} 26. Rd7 {[%clk
00:19:57]} {[%emt 00:00:06]} Qe8 {[%clk 00:16:18]} {[%emt 00:00:33]} 27. Rxb7
{[%clk 00:18:40]} {[%emt 00:01:27]} Rb8 {[%clk 00:13:37]} {[%emt 00:02:51]} 28.
Rxb8 {[%clk 00:17:59]} {[%emt 00:00:51]} Qxb8 {[%clk 00:13:30]} {[%emt
00:00:17]} 29. Qc4 {[%clk 00:16:58]} {[%emt 00:01:11]} Qe8 {[%clk 00:13:01]}
{[%emt 00:00:39]} 30. e7 {[%clk 00:16:24]} {[%emt 00:00:44]} h6 {[%clk
00:12:01]} {[%emt 00:01:11]} 31. f3 {[%clk 00:15:43]} {[%emt 00:00:51]} Bc7
{[%clk 00:10:54]} {[%emt 00:01:17]} 32. Re6 {[%clk 00:12:52]} {[%emt 00:03:00]}
Bd6 {[%clk 00:07:17]} {[%emt 00:03:47]} 33. Qxc6 {[%clk 00:11:31]} {[%emt
00:01:31]} Qxc6 {[%clk 00:07:26]} 34. e8=Q+ {[%clk 00:11:34]} {[%emt 00:00:07]}
Qxe8 {[%clk 00:07:27]} {[%emt 00:00:09]} 35. Rxe8+ {[%clk 00:11:38]} {[%emt
00:00:05]} Kh7 {[%clk 00:07:07]} {[%emt 00:00:31]} 36. b4 {[%clk 00:09:03]}
{[%emt 00:02:45]} Bg3 {[%clk 00:06:53]} {[%emt 00:00:25]} 37. Rd8 {[%clk
00:08:09]} {[%emt 00:01:04]} Rc6 {[%clk 00:05:50]} {[%emt 00:01:12]} 38. Rd3
{[%clk 00:08:03]} {[%emt 00:00:16]} Re6 {[%clk 00:05:09]} {[%emt 00:00:51]} 39.
Rd1 {[%clk 00:08:09]} {[%emt 00:00:05]} Re2 {[%clk 00:05:09]} {[%emt 00:00:09]}
40. Kg1 {[%clk 00:03:37]} {[%emt 00:04:42]} Rxa2 {[%clk 00:05:07]} {[%emt
00:00:13]} 41. Rc1 {[%clk 00:03:20]} {[%emt 00:00:26]} Bf4 {[%clk 00:05:01]}
{[%emt 00:00:16]} 42. Rd1 {[%clk 00:03:14]} {[%emt 00:00:16]} Bd2 {[%clk
00:04:12]} {[%emt 00:01:00]} 43. b5 {[%clk 00:02:51]} {[%emt 00:00:32]} Bxc3
{[%clk 00:04:08]} {[%emt 00:00:15]} 44. Rd7 {[%clk 00:02:51]} {[%emt 00:00:07]}
Rb2 {[%clk 00:03:57]} {[%emt 00:00:22]} 45. Kf1 {[%clk 00:02:40]} {[%emt
00:00:22]} Rxb5 {[%clk 00:03:13]} {[%emt 00:00:55]} 46. Rxa7 {[%clk 00:02:48]}
{[%emt 00:00:01]} Rb1+ {[%clk 00:03:07]} {[%emt 00:00:16]} 47. Ke2 {[%clk
00:02:42]} {[%emt 00:00:16]} Rb2+ {[%clk 00:03:05]} {[%emt 00:00:13]} 48. Kd3
{[%clk 00:02:19]} {[%emt 00:00:32]} Bf6 {[%clk 00:03:02]} {[%emt 00:00:14]} 49.
g3 {[%clk 00:02:09]} {[%emt 00:00:20]} Rg2 {[%clk 00:03:02]} {[%emt 00:00:09]}
50. g4 {[%clk 00:02:02]} {[%emt 00:00:18]} Rg3 {[%clk 00:03:02]} {[%emt
00:00:09]} 51. Ke4 {[%clk 00:01:57]} {[%emt 00:00:15]} Rxh3 {[%clk 00:03:02]}
{[%emt 00:00:10]} 52. f4 {[%clk 00:01:29]} {[%emt 00:00:39]} Kg6 {[%clk
00:02:37]} {[%emt 00:00:35]} 53. Ra6 {[%clk 00:01:16]} {[%emt 00:00:23]} Rh1
{[%clk 00:02:33]} {[%emt 00:00:13]} 54. Rc6 {[%clk 00:00:56]} {[%emt 00:00:30]}
Ra1 {[%clk 00:02:37]} {[%emt 00:00:07]} 55. Rc5 {[%clk 00:00:35]} {[%emt
00:00:31]} Ra4+ {[%clk 00:02:34]} {[%emt 00:00:12]} 56. Kf3 {[%clk 00:00:37]}
{[%emt 00:00:08]} Ra6 {[%clk 00:02:10]} {[%emt 00:00:36]} 57. Rb5 {[%clk
00:00:39]} {[%emt 00:00:07]} Ra4 {[%clk 00:02:03]} {[%emt 00:00:16]} 58. Rd5
{[%clk 00:00:37]} {[%emt 00:00:13]} Kf7 {[%clk 00:02:09]} {[%emt 00:00:04]} 59.
Rb5 {[%clk 00:00:43]} {[%emt 00:00:04]} Ke6 {[%clk 00:02:05]} {[%emt 00:00:13]}
60. Rh5 {[%clk 00:00:35]} {[%emt 00:00:19]} Kd6 {[%clk 00:02:03]} {[%emt
00:00:12]} 61. Rb5 {[%clk 00:00:41]} {[%emt 00:00:04]} Rc4 {[%clk 00:02:07]}
{[%emt 00:00:06]} 62. Rh5 {[%clk 00:00:37]} {[%emt 00:00:14]} Rc5 {[%clk
00:02:06]} {[%emt 00:00:11]} 63. Rh1 {[%clk 00:00:36]} {[%emt 00:00:10]} Kd5
{[%clk 00:02:04]} {[%emt 00:00:12]} 64. Rd1+ {[%clk 00:00:40]} {[%emt
00:00:06]} Kc4 {[%clk 00:02:12]} {[%emt 00:00:02]} 65. Rd7 {[%clk 00:00:39]}
{[%emt 00:00:11]} Rd5 {[%clk 00:02:16]} {[%emt 00:00:06]} 66. Ra7 {[%clk
00:00:40]} {[%emt 00:00:09]} Kd3 {[%clk 00:02:22]} {[%emt 00:00:04]} 67. Ra3+
{[%clk 00:00:35]} {[%emt 00:00:15]} Bc3 {[%clk 00:02:28]} {[%emt 00:00:04]} 68.
f5 {[%clk 00:00:27]} {[%emt 00:00:18]} Kc4 {[%clk 00:02:22]} {[%emt 00:00:17]}
69. Ra4+ {[%clk 00:00:31]} {[%emt 00:00:06]} Kb3 {[%clk 00:02:15]} {[%emt
00:00:16]} 70. Ra6 {[%clk 00:00:39]} {[%emt 00:00:02]} Bf6 {[%clk 00:02:22]}
{[%emt 00:00:04]} 71. Rc6 {[%clk 00:00:43]} {[%emt 00:00:05]} Kb4 {[%clk
00:02:29]} {[%emt 00:00:04]} 72. Rc2 {[%clk 00:00:30]} {[%emt 00:00:20]} Rd3+
{[%clk 00:02:30]} {[%emt 00:00:11]} 73. Ke4 {[%clk 00:00:18]} {[%emt 00:00:22]}
Rg3 {[%clk 00:02:33]} {[%emt 00:00:06]} 74. Kf4 {[%clk 00:00:25]} {[%emt
00:00:04]} Rg1 {[%clk 00:02:39]} {[%emt 00:00:04]} 75. Rc6 {[%clk 00:00:29]}
{[%emt 00:00:07]} Re1 {[%clk 00:02:31]} {[%emt 00:00:18]} 76. Rc2 {[%clk
00:00:22]} {[%emt 00:00:17]} Rc1 {[%clk 00:02:31]} {[%emt 00:00:10]} 77. Re2
{[%clk 00:00:14]} {[%emt 00:00:17]} Bg5 {[%clk 00:02:28]} {[%emt 00:00:13]} 78.
Kf3 {[%clk 00:00:13]} {[%emt 00:00:12]} Rc3+ {[%clk 00:02:36]} {[%emt
00:00:02]} 79. Kg2 {[%clk 00:00:21]} Re3 {[%clk 00:02:41]} {[%emt 00:00:06]} 80.
Rb2+ {[%clk 00:00:28]} {[%emt 00:00:03]} Kc3 {[%clk 00:02:45]} {[%emt
00:00:05]} 81. Rb7 {[%clk 00:00:35]} {[%emt 00:00:04]} Bf6 {[%clk 00:02:49]}
{[%emt 00:00:07]} 82. Rd7 {[%clk 00:00:43]} {[%emt 00:00:01]} Rd3 {[%clk
00:02:53]} {[%emt 00:00:06]} 83. Rb7 {[%clk 00:00:46]} {[%emt 00:00:07]} Kd2
{[%clk 00:02:54]} {[%emt 00:00:09]} 84. Kf2 {[%clk 00:00:40]} {[%emt 00:00:16]}
Bd4 {[%clk 00:02:56]} {[%emt 00:00:08]} 85. Kg2 {[%clk 00:00:47]} {[%emt
00:00:04]} Ke2 {[%clk 00:02:58]} {[%emt 00:00:07]} 86. Re7+ {[%clk 00:00:49]}
{[%emt 00:00:08]} Re3 {[%clk 00:03:05]} {[%emt 00:00:02]} 87. Rb7 {[%clk
00:00:32]} {[%emt 00:00:28]} Be5 {[%clk 00:03:00]} {[%emt 00:00:15]} 88. Rb5
{[%clk 00:00:15]} {[%emt 00:00:28]} Kd3 {[%clk 00:02:29]} {[%emt 00:00:41]} 89.
Ra5 {[%clk 00:00:11]} {[%emt 00:00:13]} Ke4 {[%clk 00:02:21]} {[%emt 00:00:17]}
90. Ra4+ {[%clk 00:00:18]} {[%emt 00:00:04]} Kd5 {[%clk 00:02:29]} 91. Ra5+
{[%clk 00:00:27]} {[%emt 00:00:02]} Kd6 {[%clk 00:02:31]} {[%emt 00:00:08]} 92.
Ra6+ {[%clk 00:00:28]} {[%emt 00:00:09]} Ke7 {[%clk 00:02:40]} 93. Ra7+ {[%clk
00:00:28]} {[%emt 00:00:11]} Kf6 {[%clk 00:02:47]} {[%emt 00:00:03]} 94. Ra6+
{[%clk 00:00:31]} {[%emt 00:00:07]} Kg5 {[%clk 00:02:48]} {[%emt 00:00:08]} 95.
Rg6+ {[%clk 00:00:13]} {[%emt 00:00:28]} Kf4 {[%clk 00:02:49]} {[%emt
00:00:09]} 96. Kf2 {[%clk 00:00:12]} {[%emt 00:00:12]} Rg3 {[%clk 00:02:50]}
{[%emt 00:00:08]} 97. Ra6 {[%clk 00:00:12]} {[%emt 00:00:10]} Rxg4 {[%clk
00:02:55]} {[%emt 00:00:05]} 98. Ra4+ {[%clk 00:00:11]} {[%emt 00:00:11]} Kxf5
{[%clk 00:03:02]} {[%emt 00:00:03]} 99. Ra8 {[%clk 00:00:14]} {[%emt 00:00:07]}
h5 {[%clk 00:02:36]} {[%emt 00:00:36]} 100. Rf8+ {[%clk 00:00:21]} {[%emt
00:00:04]} Kg5 {[%clk 00:02:40]} {[%emt 00:00:06]} 101. Rh8 {[%clk 00:00:28]}
{[%emt 00:00:03]} h4 {[%clk 00:02:42]} {[%emt 00:00:07]} 102. Rh7 {[%clk
00:00:31]} {[%emt 00:00:07]} Kg6 {[%clk 00:02:27]} {[%emt 00:00:25]} 103. Rh8
{[%clk 00:00:36]} {[%emt 00:00:05]} Bf6 {[%clk 00:02:33]} {[%emt 00:00:04]} 104.
Kf3 {[%clk 00:00:41]} {[%emt 00:00:05]} Rg3+ {[%clk 00:02:33]} {[%emt
00:00:10]} 105. Kf2 {[%clk 00:00:47]} {[%emt 00:00:04]} Bd4+ {[%clk 00:02:36]}
{[%emt 00:00:07]} 106. Kf1 {[%clk 00:00:56]} h3 {[%clk 00:02:27]} {[%emt
00:00:19]} 107. Rh4 {[%clk 00:01:05]} {[%emt 00:00:02]} Bf6 {[%clk 00:02:29]}
{[%emt 00:00:08]} 108. Rh8 {[%clk 00:01:04]} {[%emt 00:00:10]} Kf5 {[%clk
00:02:30]} {[%emt 00:00:08]} 109. Kf2 {[%clk 00:01:03]} {[%emt 00:00:12]} Ra3
{[%clk 00:02:27]} {[%emt 00:00:13]} 110. Kg1 {[%clk 00:00:55]} {[%emt
00:00:18]} g5 {[%clk 00:02:32]} {[%emt 00:00:05]} 111. Kh1 {[%clk 00:00:39]}
{[%emt 00:00:26]} Bxh8 {[%emt 00:00:07]} 0-1

[Event "Kwalificatie NJK B Groningen"]
[Site "Hoogkerk, Netherlands"]
[Date "2023.02.18"]
[Round "3.4"]
[White "Ponomarev, Ivan"]
[Black "Lee, Jungmin"]
[Result "1/2-1/2"]
[TimeControl "55 min. + 10 sec./zet"]
[WhiteElo "1801"]
[BlackElo "1600"]

1. c4 {[%clk 00:55:17]} {[%emt 00:00:02]} f5 {[%clk 00:54:39]} {[%emt
00:00:41]} 2. g3 {[%clk 00:54:05]} {[%emt 00:01:22]} e6 {[%clk 00:51:38]}
{[%emt 00:03:11]} 3. Bg2 {[%clk 00:54:02]} {[%emt 00:00:14]} Nf6 {[%clk
00:51:43]} {[%emt 00:00:05]} 4. Nc3 {[%clk 00:53:30]} {[%emt 00:00:42]} Be7
{[%clk 00:51:44]} {[%emt 00:00:09]} 5. d4 {[%clk 00:51:47]} {[%emt 00:01:53]}
O-O {[%clk 00:51:43]} {[%emt 00:00:11]} 6. Nf3 {[%clk 00:50:53]} {[%emt
00:01:04]} Ne4 {[%clk 00:49:55]} {[%emt 00:01:57]} 7. Bd2 {[%clk 00:45:54]}
{[%emt 00:05:10]} d6 {[%clk 00:48:24]} {[%emt 00:01:41]} 8. O-O {[%clk
00:42:59]} {[%emt 00:03:04]} Qe8 {[%clk 00:47:59]} {[%emt 00:00:34]} 9. Qc2
{[%clk 00:36:11]} {[%emt 00:06:59]} Nxc3 {[%clk 00:48:00]} {[%emt 00:00:10]} 10.
Bxc3 {[%clk 00:36:06]} {[%emt 00:00:14]} Nd7 {[%clk 00:47:59]} {[%emt
00:00:11]} 11. Rad1 {[%clk 00:31:52]} {[%emt 00:04:24]} Qh5 {[%clk 00:46:46]}
{[%emt 00:01:23]} 12. Nd2 {[%clk 00:24:51]} {[%emt 00:07:10]} Nf6 {[%clk
00:44:57]} {[%emt 00:02:00]} 13. e4 {[%clk 00:22:33]} {[%emt 00:02:28]} fxe4
{[%clk 00:43:47]} {[%emt 00:01:20]} 14. Nxe4 {[%clk 00:22:18]} {[%emt
00:00:24]} d5 {[%clk 00:41:55]} {[%emt 00:02:02]} 15. cxd5 {[%clk 00:17:59]}
{[%emt 00:04:30]} exd5 {[%clk 00:41:47]} {[%emt 00:00:18]} 16. Nxf6+ {[%clk
00:17:11]} {[%emt 00:00:59]} Rxf6 {[%clk 00:41:02]} {[%emt 00:00:55]} 17. f4
{[%clk 00:13:04]} {[%emt 00:04:17]} c6 {[%clk 00:40:41]} {[%emt 00:00:30]} 18.
Rde1 {[%clk 00:12:12]} {[%emt 00:01:02]} Bd6 {[%clk 00:39:32]} {[%emt
00:01:19]} 19. Bf3 {[%clk 00:08:48]} {[%emt 00:03:34]} Bg4 {[%clk 00:39:17]}
{[%emt 00:00:26]} 20. Qe2 {[%clk 00:08:28]} {[%emt 00:00:30]} Bxf3 {[%clk
00:39:09]} {[%emt 00:00:18]} 21. Qxf3 {[%clk 00:08:34]} {[%emt 00:00:04]} Qg6
{[%clk 00:39:04]} {[%emt 00:00:14]} 22. Qg2 {[%clk 00:08:14]} {[%emt 00:00:30]}
Raf8 {[%clk 00:38:46]} {[%emt 00:00:28]} 23. a3 {[%clk 00:05:42]} {[%emt
00:02:42]} Qg4 {[%clk 00:38:26]} {[%emt 00:00:29]} 24. Kh1 {[%clk 00:03:45]}
{[%emt 00:02:08]} Rg6 {[%clk 00:37:58]} {[%emt 00:00:39]} 25. Qe2 {[%clk
00:02:20]} {[%emt 00:01:32]} Qh3 {[%clk 00:37:30]} {[%emt 00:00:41]} 26. Qg2
{[%clk 00:02:02]} {[%emt 00:00:24]} Qf5 {[%clk 00:36:33]} {[%emt 00:01:10]} 27.
Qd2 {[%clk 00:01:43]} {[%emt 00:00:29]} h5 {[%clk 00:36:13]} {[%emt 00:00:30]}
28. Bb4 {[%clk 00:00:41]} {[%emt 00:01:11]} h4 {[%clk 00:36:00]} {[%emt
00:00:23]} 29. Bxd6 {[%clk 00:00:46]} {[%emt 00:00:06]} Rxd6 {[%clk 00:35:59]}
{[%emt 00:00:11]} 30. Re5 {[%clk 00:00:24]} {[%emt 00:00:33]} Qh3 {[%clk
00:35:53]} {[%emt 00:00:16]} 31. Qg2 {[%clk 00:00:18]} {[%emt 00:00:14]} Qg4
{[%clk 00:35:42]} {[%emt 00:00:21]} 32. gxh4 {[%clk 00:00:19]} {[%emt
00:00:10]} Qxh4 {[%clk 00:35:05]} {[%emt 00:00:46]} 33. Rg5 {[%clk 00:00:18]}
{[%emt 00:00:12]} Rd7 {[%clk 00:33:47]} {[%emt 00:01:29]} 34. Qg4 {[%clk
00:00:14]} {[%emt 00:00:14]} Qxg4 {[%clk 00:33:30]} {[%emt 00:00:27]} 35. Rxg4
{[%clk 00:00:23]} Re7 {[%clk 00:33:21]} {[%emt 00:00:20]} 36. f5 {[%clk
00:00:17]} {[%emt 00:00:16]} Rf6 {[%clk 00:32:26]} {[%emt 00:01:04]} 37. Rf2
{[%clk 00:00:13]} {[%emt 00:00:14]} Re4 {[%clk 00:31:26]} {[%emt 00:01:10]} 38.
Rxe4 {[%clk 00:00:15]} {[%emt 00:00:08]} dxe4 {[%clk 00:31:29]} {[%emt
00:00:07]} 39. Re2 {[%clk 00:00:16]} {[%emt 00:00:10]} Rxf5 {[%clk 00:31:20]}
{[%emt 00:00:19]} 40. Rxe4 {[%clk 00:00:25]} {[%emt 00:00:01]} Kf7 {[%clk
00:30:58]} {[%emt 00:00:31]} 41. Kg2 {[%clk 00:00:29]} {[%emt 00:00:06]} Rd5
{[%clk 00:30:23]} {[%emt 00:00:44]} 42. Kf3 {[%clk 00:00:22]} {[%emt 00:00:18]}
Kf6 {[%clk 00:30:21]} {[%emt 00:00:12]} 43. h4 {[%clk 00:00:18]} {[%emt
00:00:13]} a5 {[%clk 00:30:25]} {[%emt 00:00:07]} 44. a4 {[%clk 00:00:12]}
{[%emt 00:00:16]} b5 {[%clk 00:30:17]} {[%emt 00:00:18]} 45. b3 {[%clk
00:00:19]} {[%emt 00:00:04]} bxa4 {[%clk 00:29:42]} {[%emt 00:00:45]} 46. bxa4
{[%clk 00:00:28]} {[%emt 00:00:01]} g6 {[%clk 00:28:48]} {[%emt 00:01:03]}
1/2-1/2

[Event "Kwalificatie NJK B Groningen"]
[Site "Hoogkerk, Netherlands"]
[Date "2023.02.18"]
[Round "3.5"]
[White "Haque, Nishaaz"]
[Black "Blom, Rens"]
[Result "0-1"]
[TimeControl "55 min. + 10 sec./zet"]
[WhiteElo "1669"]
[BlackElo "1758"]

1. e4 {[%clk 00:55:15]} d6 {[%clk 00:55:12]} 2. d4 {[%clk 00:55:09]} Nf6 {[%clk
00:55:18]} 3. Nc3 {[%clk 00:54:56]} g6 {[%clk 00:55:24]} 4. Be2 {[%clk
00:54:58]} {[%emt 00:00:10]} Bg7 {[%clk 00:55:25]} {[%emt 00:00:05]} 5. Nf3
{[%clk 00:54:57]} {[%emt 00:00:36]} O-O {[%clk 00:55:29]} 6. O-O {[%clk
00:55:04]} Nc6 {[%clk 00:55:05]} {[%emt 00:00:16]} 7. h3 {[%clk 00:54:59]}
{[%emt 00:00:38]} e5 {[%clk 00:54:49]} {[%emt 00:00:05]} 8. dxe5 {[%clk
00:54:51]} {[%emt 00:00:27]} Nxe5 {[%clk 00:53:55]} {[%emt 00:00:53]} 9. Nxe5
{[%clk 00:54:51]} {[%emt 00:00:33]} dxe5 {[%clk 00:54:00]} {[%emt 00:00:09]} 10.
Qxd8 {[%clk 00:54:23]} {[%emt 00:00:10]} Rxd8 {[%clk 00:54:08]} {[%emt
00:00:27]} 11. Be3 {[%clk 00:54:17]} {[%emt 00:00:10]} b6 {[%clk 00:48:55]}
{[%emt 00:05:05]} 12. f3 {[%clk 00:51:47]} {[%emt 00:02:40]} Bb7 {[%clk
00:48:07]} {[%emt 00:01:06]} 13. Rad1 {[%clk 00:51:28]} {[%emt 00:01:09]} a6
{[%clk 00:44:28]} {[%emt 00:03:07]} 14. Rxd8+ {[%clk 00:50:35]} {[%emt
00:01:18]} Rxd8 {[%clk 00:44:32]} 15. Rd1 {[%clk 00:50:39]} Rxd1+ {[%clk
00:40:41]} {[%emt 00:03:57]} 16. Nxd1 {[%clk 00:49:54]} {[%emt 00:01:29]} Nh5
{[%clk 00:38:20]} {[%emt 00:01:51]} 17. Bf1 {[%clk 00:48:09]} {[%emt 00:01:56]}
Nf4 {[%clk 00:30:57]} {[%emt 00:07:32]} 18. Nc3 {[%clk 00:45:21]} {[%emt
00:02:59]} Bf8 {[%clk 00:27:04]} {[%emt 00:04:24]} 19. Bxf4 {[%clk 00:44:19]}
{[%emt 00:01:37]} exf4 {[%clk 00:27:08]} 20. Nd5 {[%clk 00:44:00]} Bc5+ {[%clk
00:23:42]} {[%emt 00:03:33]} 21. Kh1 {[%clk 00:42:45]} {[%emt 00:02:39]} Bd6
{[%clk 00:19:58]} {[%emt 00:03:15]} 22. Nf6+ {[%clk 00:41:48]} {[%emt
00:00:23]} Kg7 {[%clk 00:16:28]} {[%emt 00:04:02]} 23. Ne8+ {[%clk 00:41:50]}
{[%emt 00:00:22]} Kh6 {[%clk 00:16:27]} 24. Bc4 {[%clk 00:39:59]} {[%emt
00:01:44]} Be5 {[%clk 00:14:26]} {[%emt 00:02:35]} 25. Bxf7 {[%clk 00:39:38]}
{[%emt 00:00:22]} Kg5 {[%clk 00:13:22]} {[%emt 00:01:35]} 26. Bd5 {[%clk
00:33:04]} {[%emt 00:06:00]} Bc8 {[%clk 00:11:19]} {[%emt 00:03:08]} 27. Bc6
{[%clk 00:32:30]} Kh4 {[%clk 00:09:53]} {[%emt 00:02:06]} 28. Kh2 {[%clk
00:32:17]} {[%emt 00:00:09]} Be6 {[%clk 00:09:37]} {[%emt 00:00:05]} 29. b3
{[%clk 00:31:51]} {[%emt 00:01:09]} g5 {[%clk 00:07:41]} {[%emt 00:03:19]} 30.
Bb7 {[%clk 00:30:27]} Bd7 {[%clk 00:07:28]} {[%emt 00:00:15]} 31. Nxc7 {[%clk
00:30:33]} Bxc7 {[%clk 00:07:33]} {[%emt 00:00:33]} 32. Bxa6 {[%clk 00:30:39]}
Be5 {[%clk 00:06:30]} {[%emt 00:00:51]} 33. Be2 {[%clk 00:29:50]} {[%emt
00:00:51]} Bd4 {[%clk 00:04:48]} {[%emt 00:01:53]} 34. c4 {[%clk 00:29:17]}
{[%emt 00:01:18]} Bc5 {[%clk 00:04:39]} {[%emt 00:00:13]} 35. Bd1 {[%clk
00:29:20]} Bd6 {[%clk 00:04:28]} 36. Be2 {[%clk 00:29:22]} {[%emt 00:00:04]}
Kh5 {[%clk 00:04:19]} {[%emt 00:00:34]} 37. a4 {[%clk 00:29:15]} {[%emt
00:00:28]} Kg6 {[%clk 00:04:17]} 38. c5 {[%clk 00:28:41]} {[%emt 00:00:33]}
Bxc5 {[%clk 00:04:22]} {[%emt 00:00:45]} 39. Bc4 {[%clk 00:28:41]} Kf6 {[%clk
00:04:20]} 40. g3 {[%clk 00:28:43]} Bd6 {[%clk 00:03:40]} {[%emt 00:00:43]} 41.
gxf4 {[%clk 00:28:28]} {[%emt 00:00:23]} Bxf4+ {[%clk 00:03:50]} {[%emt
00:00:32]} 42. Kg2 {[%clk 00:28:21]} Be6 {[%clk 00:03:57]} 43. Bxe6 {[%clk
00:27:25]} {[%emt 00:01:07]} Kxe6 {[%clk 00:04:07]} 44. Kf2 {[%clk 00:27:26]}
Ke5 {[%clk 00:03:25]} {[%emt 00:01:26]} 45. b4 {[%clk 00:27:30]} Bd2 {[%clk
00:03:29]} 46. a5 {[%clk 00:27:15]} {[%emt 00:00:46]} bxa5 {[%clk 00:03:37]} 47.
bxa5 {[%clk 00:26:50]} Bxa5 {[%clk 00:03:45]} 48. Kg3 {[%clk 00:26:26]} {[%emt
00:01:01]} h5 {[%clk 00:03:01]} {[%emt 00:00:47]} 49. h4 {[%clk 00:26:30]} Be1+
{[%clk 00:03:10]} 50. Kg2 {[%clk 00:26:20]} {[%emt 00:00:09]} Bxh4 {[%clk
00:03:16]} 51. Kh3 {[%clk 00:26:23]} {[%emt 00:00:15]} Be1 {[%clk 00:03:06]}
{[%emt 00:00:11]} 52. Kg2 {[%clk 00:26:25]} {[%emt 00:00:04]} Kf4 {[%clk
00:03:09]} {[%emt 00:00:07]} 53. Kf1 {[%clk 00:26:25]} {[%emt 00:00:07]} Bc3
{[%clk 00:03:17]} {[%emt 00:00:27]} 54. Kf2 {[%clk 00:26:30]} {[%emt 00:00:13]}
g4 {[%clk 00:03:08]} 55. fxg4 {[%clk 00:26:29]} {[%emt 00:00:35]} hxg4 {[%clk
00:03:17]} 56. Kg2 {[%clk 00:26:31]} Kxe4 {[%clk 00:03:23]} 57. Kg3 {[%clk
00:26:38]} Kf5 {[%clk 00:03:32]} 58. Kg2 {[%clk 00:26:43]} Kf4 {[%clk
00:03:41]} {[%emt 00:00:10]} 59. Kf2 {[%clk 00:26:49]} g3+ {[%clk 00:03:47]} 60.
Kg2 {[%clk 00:26:57]} Kg4 {[%clk 00:03:55]} 61. Kg1 {[%clk 00:27:01]} Kh3
{[%clk 00:04:02]} {[%emt 00:00:04]} 0-1